[Event "Early-Titled-Tuesday-Blitz-May-07-2024"]
[Site "Chess.com"]
[Date "2024.05.07"]
[Round "8"]
[White "Seochesspie"]
[Black "Boundless_Strike"]
[Result "1/2-1/2"]
[WhiteElo "2850"]
[BlackElo "2681"]
[TimeControl "180+1"]
[EndTime "9:36:19 PDT"]
[Termination "Game drawn - insufficient material"]

1. c4 {[%clk 0:03:00.9]} 1... e5 {[%clk 0:02:55]} 2. Nc3 {[%clk 0:03:00.3]} 2...
Nc6 {[%clk 0:02:55.3]} 3. Nf3 {[%clk 0:02:59.7]} 3... d6 {[%clk 0:02:51.3]} 4.
Rb1 {[%clk 0:02:57.5]} 4... f5 {[%clk 0:02:51.2]} 5. d3 {[%clk 0:02:54.9]} 5...
Nf6 {[%clk 0:02:50.9]} 6. b4 {[%clk 0:02:54.2]} 6... g6 {[%clk 0:02:44.9]} 7. b5
{[%clk 0:02:52.3]} 7... Ne7 {[%clk 0:02:45]} 8. a4 {[%clk 0:02:52.9]} 8... Bg7
{[%clk 0:02:45.1]} 9. e3 {[%clk 0:02:47.1]} 9... O-O {[%clk 0:02:44.5]} 10. Be2
{[%clk 0:02:47.5]} 10... h6 {[%clk 0:02:34.1]} 11. a5 {[%clk 0:02:44.1]} 11...
Qe8 {[%clk 0:02:27.3]} 12. Ba3 {[%clk 0:02:38.8]} 12... g5 {[%clk 0:02:14.4]}
13. Nd2 {[%clk 0:02:37.8]} 13... Ng6 {[%clk 0:01:48.2]} 14. c5 {[%clk
0:02:36.4]} 14... d5 {[%clk 0:01:40]} 15. c6 {[%clk 0:02:35.8]} 15... Rf7 {[%clk
0:01:37.6]} 16. cxb7 {[%clk 0:02:33.5]} 16... Bxb7 {[%clk 0:01:37.8]} 17. Na4
{[%clk 0:02:33.7]} 17... d4 {[%clk 0:01:13.5]} 18. O-O {[%clk 0:02:33.6]} 18...
Nd5 {[%clk 0:00:44.3]} 19. Nc4 {[%clk 0:02:32.6]} 19... Rd8 {[%clk 0:00:43.3]}
20. Bh5 {[%clk 0:02:28.1]} 20... Kh7 {[%clk 0:00:33]} 21. exd4 {[%clk
0:02:14.7]} 21... e4 {[%clk 0:00:25.3]} 22. dxe4 {[%clk 0:02:04.1]} 22... fxe4
{[%clk 0:00:16.8]} 23. Nc5 {[%clk 0:01:57.9]} 23... Ba8 {[%clk 0:00:16.4]} 24.
Bxg6+ {[%clk 0:01:40.4]} 24... Kxg6 {[%clk 0:00:16.5]} 25. Qd2 {[%clk
0:01:40.4]} 25... Nf4 {[%clk 0:00:13.7]} 26. Ne3 {[%clk 0:01:34]} 26... Bxd4
{[%clk 0:00:12.9]} 27. Qc2 {[%clk 0:01:33.7]} 27... Nd3 {[%clk 0:00:08.6]} 28.
Nxd3 {[%clk 0:01:27]} 28... exd3 {[%clk 0:00:09.1]} 29. Qxd3+ {[%clk 0:01:27.4]}
29... Be4 {[%clk 0:00:09.8]} 30. Qb3 {[%clk 0:01:24.3]} 30... Bxb1 {[%clk
0:00:09.6]} 31. Qxb1+ {[%clk 0:01:24.3]} 31... Kg7 {[%clk 0:00:06.9]} 32. Nf5+
{[%clk 0:01:23.5]} 32... Rxf5 {[%clk 0:00:04.8]} 33. Qxf5 {[%clk 0:01:23.2]}
33... Qe5 {[%clk 0:00:02.9]} 34. Qc2 {[%clk 0:01:17.4]} 34... Rd5 {[%clk
0:00:02.2]} 35. g3 {[%clk 0:00:59]} 35... Rxb5 {[%clk 0:00:02.5]} 36. a6 {[%clk
0:00:59.3]} 36... Rd5 {[%clk 0:00:02]} 37. Bc1 {[%clk 0:00:56.8]} 37... Rd8
{[%clk 0:00:02]} 38. Kg2 {[%clk 0:00:56]} 38... c5 {[%clk 0:00:02.6]} 39. f3
{[%clk 0:00:50.5]} 39... Re8 {[%clk 0:00:02.4]} 40. f4 {[%clk 0:00:44.2]} 40...
Qe2+ {[%clk 0:00:03.1]} 41. Qxe2 {[%clk 0:00:44.3]} 41... Rxe2+ {[%clk 0:00:04]}
42. Kf3 {[%clk 0:00:42.9]} 42... Rxh2 {[%clk 0:00:04.4]} 43. fxg5 {[%clk
0:00:43.2]} 43... hxg5 {[%clk 0:00:05.3]} 44. Bxg5 {[%clk 0:00:43.8]} 44... Ra2
{[%clk 0:00:06]} 45. Ke4 {[%clk 0:00:38.9]} 45... Rxa6 {[%clk 0:00:05.9]} 46. g4
{[%clk 0:00:39.3]} 46... Rg6 {[%clk 0:00:06]} 47. Kf5 {[%clk 0:00:39.3]} 47...
Bf6 {[%clk 0:00:06.5]} 48. Be3 {[%clk 0:00:37.8]} 48... Bd4 {[%clk 0:00:06.1]}
49. Bg5 {[%clk 0:00:38]} 49... Bf6 {[%clk 0:00:05.8]} 50. Bf4 {[%clk 0:00:35.7]}
50... Bd4 {[%clk 0:00:05.5]} 51. g5 {[%clk 0:00:35.8]} 51... Rc6 {[%clk
0:00:04.7]} 52. Rb1 {[%clk 0:00:33.8]} 52... Rb6 {[%clk 0:00:03.6]} 53. Re1
{[%clk 0:00:32.7]} 53... Kf7 {[%clk 0:00:04]} 54. Rh1 {[%clk 0:00:31]} 54... Kg7
{[%clk 0:00:04]} 55. Rh2 {[%clk 0:00:26.9]} 55... Rc6 {[%clk 0:00:04.1]} 56. Ra2
{[%clk 0:00:26]} 56... c4 {[%clk 0:00:04]} 57. Ke4 {[%clk 0:00:25]} 57... Bb6
{[%clk 0:00:03.2]} 58. Rh2 {[%clk 0:00:22.1]} 58... c3 {[%clk 0:00:02.9]} 59.
Be5+ {[%clk 0:00:22.2]} 59... Kg8 {[%clk 0:00:02.5]} 60. Rc2 {[%clk 0:00:21.6]}
60... Ba5 {[%clk 0:00:02.4]} 61. Kd5 {[%clk 0:00:21.5]} 61... Rc8 {[%clk
0:00:02.3]} 62. g6 {[%clk 0:00:21.1]} 62... Rd8+ {[%clk 0:00:01.9]} 63. Ke6
{[%clk 0:00:19.3]} 63... Re8+ {[%clk 0:00:02.5]} 64. Kf5 {[%clk 0:00:19.7]}
64... Rf8+ {[%clk 0:00:03.1]} 65. Ke4 {[%clk 0:00:19.6]} 65... Re8 {[%clk
0:00:03.6]} 66. Kd5 {[%clk 0:00:18.2]} 66... Rd8+ {[%clk 0:00:04.1]} 67. Kc4
{[%clk 0:00:18.4]} 67... Rc8+ {[%clk 0:00:04.6]} 68. Kb5 {[%clk 0:00:18]} 68...
Re8 {[%clk 0:00:04.9]} 69. Bd4 {[%clk 0:00:16.8]} 69... Bb6 {[%clk 0:00:05.2]}
70. Bxc3 {[%clk 0:00:13.9]} 70... Rc8 {[%clk 0:00:05.5]} 71. Kb4 {[%clk
0:00:12.1]} 71... a5+ {[%clk 0:00:06]} 72. Kb3 {[%clk 0:00:11.7]} 72... a4+
{[%clk 0:00:06.5]} 73. Kb4 {[%clk 0:00:07.5]} 73... a3 {[%clk 0:00:06.3]} 74.
Rh2 {[%clk 0:00:06.3]} 74... Ba5+ {[%clk 0:00:06.7]} 75. Kxa5 {[%clk 0:00:05.9]}
75... Rxc3 {[%clk 0:00:07.1]} 76. Kb4 {[%clk 0:00:06.2]} 76... Rg3 {[%clk
0:00:07.3]} 77. Ka4 {[%clk 0:00:05.6]} 77... Kg7 {[%clk 0:00:07.6]} 78. Ra2
{[%clk 0:00:05.2]} 78... Kxg6 {[%clk 0:00:08.1]} 79. Rxa3 {[%clk 0:00:06.1]}
79... Rxa3+ {[%clk 0:00:08.1]} 80. Kxa3 {[%clk 0:00:07]} 1/2-1/2

[Event "Early-Titled-Tuesday-Blitz-May-07-2024"]
[Site "Chess.com"]
[Date "2024.05.07"]
[Round "8"]
[White "jefferyx"]
[Black "gurelediz"]
[Result "1/2-1/2"]
[WhiteElo "3123"]
[BlackElo "2961"]
[TimeControl "180+1"]
[EndTime "9:36:33 PDT"]
[Termination "Game drawn - insufficient material"]

1. d4 {[%clk 0:02:59.8]} 1... Nf6 {[%clk 0:02:59.2]} 2. c4 {[%clk 0:02:59.8]}
2... e6 {[%clk 0:02:59.2]} 3. Nc3 {[%clk 0:03:00.2]} 3... Bb4 {[%clk 0:02:58.7]}
4. Nf3 {[%clk 0:03:00.5]} 4... O-O {[%clk 0:02:58.5]} 5. Bg5 {[%clk 0:03:00.2]}
5... h6 {[%clk 0:02:58.6]} 6. Bh4 {[%clk 0:03:00.6]} 6... d5 {[%clk 0:02:58.7]}
7. e3 {[%clk 0:03:00.7]} 7... c6 {[%clk 0:02:53.6]} 8. Rc1 {[%clk 0:02:53.2]}
8... Nbd7 {[%clk 0:02:52.5]} 9. a3 {[%clk 0:02:53.3]} 9... Be7 {[%clk
0:02:52.2]} 10. Bd3 {[%clk 0:02:39.6]} 10... dxc4 {[%clk 0:02:46.5]} 11. Bxc4
{[%clk 0:02:40.5]} 11... b5 {[%clk 0:02:47]} 12. Bd3 {[%clk 0:02:41.1]} 12...
Bb7 {[%clk 0:02:46.8]} 13. O-O {[%clk 0:02:40.3]} 13... b4 {[%clk 0:02:26.4]}
14. axb4 {[%clk 0:02:39.5]} 14... Bxb4 {[%clk 0:02:27.3]} 15. Ne5 {[%clk
0:02:30.8]} 15... Be7 {[%clk 0:02:21.2]} 16. Nxd7 {[%clk 0:02:29.6]} 16... Nxd7
{[%clk 0:02:21.6]} 17. Bxe7 {[%clk 0:02:29.9]} 17... Qxe7 {[%clk 0:02:22.5]} 18.
Na4 {[%clk 0:02:25.4]} 18... e5 {[%clk 0:02:08.8]} 19. Bb1 {[%clk 0:01:22.3]}
19... Rfd8 {[%clk 0:01:57.7]} 20. Qc2 {[%clk 0:01:13.7]} 20... g6 {[%clk
0:01:57.2]} 21. Rfd1 {[%clk 0:01:13.8]} 21... exd4 {[%clk 0:01:32.1]} 22. Rxd4
{[%clk 0:01:14.7]} 22... c5 {[%clk 0:01:32]} 23. Rf4 {[%clk 0:01:02.4]} 23...
Qg5 {[%clk 0:01:22]} 24. f3 {[%clk 0:00:47.6]} 24... Ne5 {[%clk 0:01:15.1]} 25.
h4 {[%clk 0:00:38.8]} 25... Qg3 {[%clk 0:00:47.4]} 26. Qf2 {[%clk 0:00:38.9]}
26... Qxf2+ {[%clk 0:00:47.8]} 27. Kxf2 {[%clk 0:00:39.8]} 27... Rd2+ {[%clk
0:00:43.6]} 28. Kg3 {[%clk 0:00:40.2]} 28... c4 {[%clk 0:00:41.9]} 29. Rd4
{[%clk 0:00:40.1]} 29... Re2 {[%clk 0:00:34.8]} 30. Be4 {[%clk 0:00:31.6]} 30...
Bxe4 {[%clk 0:00:31.1]} 31. Rxe4 {[%clk 0:00:32.5]} 31... Nd3 {[%clk 0:00:31.8]}
32. Rcxc4 {[%clk 0:00:26.2]} 32... Ne1 {[%clk 0:00:32.3]} 33. Rc7 {[%clk
0:00:15.3]} 33... Rxg2+ {[%clk 0:00:29.8]} 34. Kh3 {[%clk 0:00:15.9]} 34... Rf2
{[%clk 0:00:30]} 35. f4 {[%clk 0:00:16.1]} 35... Rd8 {[%clk 0:00:26.9]} 36. Rd4
{[%clk 0:00:06.4]} 36... Re8 {[%clk 0:00:20.7]} 37. e4 {[%clk 0:00:03.8]} 37...
Rxf4 {[%clk 0:00:18.8]} 38. Nc5 {[%clk 0:00:03.9]} 38... Nf3 {[%clk 0:00:16.4]}
39. Rd6 {[%clk 0:00:03.3]} 39... Ne5 {[%clk 0:00:11]} 40. Rxa7 {[%clk
0:00:03.7]} 40... Rb8 {[%clk 0:00:08.3]} 41. Rb7 {[%clk 0:00:01.2]} 41... Rxb7
{[%clk 0:00:08.9]} 42. Nxb7 {[%clk 0:00:02]} 42... Rf3+ {[%clk 0:00:09.7]} 43.
Kg2 {[%clk 0:00:02]} 43... Rb3 {[%clk 0:00:10.6]} 44. Nc5 {[%clk 0:00:01.9]}
44... Rxb2+ {[%clk 0:00:11.2]} 45. Kg3 {[%clk 0:00:02.6]} 45... Rb5 {[%clk
0:00:11.6]} 46. Rd5 {[%clk 0:00:02.5]} 46... Nc6 {[%clk 0:00:08.5]} 47. Nd7
{[%clk 0:00:02.9]} 47... Rb3+ {[%clk 0:00:08.5]} 48. Kf4 {[%clk 0:00:03.3]}
48... Kg7 {[%clk 0:00:09.2]} 49. e5 {[%clk 0:00:02.4]} 49... Rb4+ {[%clk
0:00:09.1]} 50. Kg3 {[%clk 0:00:03.1]} 50... Ne7 {[%clk 0:00:09.2]} 51. Rd3
{[%clk 0:00:02.7]} 51... Nf5+ {[%clk 0:00:09.3]} 52. Kf2 {[%clk 0:00:03.4]}
52... Rf4+ {[%clk 0:00:09]} 53. Kg1 {[%clk 0:00:02.8]} 53... Nxh4 {[%clk
0:00:06.8]} 54. Kh2 {[%clk 0:00:01.9]} 54... Rf5 {[%clk 0:00:06.1]} 55. Kg3
{[%clk 0:00:01.6]} 55... g5 {[%clk 0:00:06.9]} 56. Rd5 {[%clk 0:00:00.9]} 56...
Ng6 {[%clk 0:00:06.9]} 57. Kg4 {[%clk 0:00:01.3]} 57... Rf4+ {[%clk 0:00:07.5]}
58. Kg3 {[%clk 0:00:01.7]} 58... Re4 {[%clk 0:00:06.8]} 59. Kf3 {[%clk
0:00:02.1]} 59... Rf4+ {[%clk 0:00:07.4]} 60. Ke3 {[%clk 0:00:02.3]} 60... Rf1
{[%clk 0:00:05.4]} 61. Nf6 {[%clk 0:00:02.5]} 61... Re1+ {[%clk 0:00:05.9]} 62.
Kd4 {[%clk 0:00:02.5]} 62... Rd1+ {[%clk 0:00:06.5]} 63. Ke4 {[%clk 0:00:02.5]}
63... Rxd5 {[%clk 0:00:07.1]} 64. Kxd5 {[%clk 0:00:03.1]} 64... Nf4+ {[%clk
0:00:07.8]} 65. Ke4 {[%clk 0:00:03.2]} 65... Kg6 {[%clk 0:00:08.5]} 66. Ng8
{[%clk 0:00:03.3]} 66... h5 {[%clk 0:00:05.7]} 67. Ne7+ {[%clk 0:00:03.6]} 67...
Kg7 {[%clk 0:00:06.4]} 68. Kf5 {[%clk 0:00:03.6]} 68... Ne6 {[%clk 0:00:06.8]}
69. Nd5 {[%clk 0:00:04]} 69... h4 {[%clk 0:00:06.1]} 70. Kg4 {[%clk 0:00:04.9]}
70... Kg6 {[%clk 0:00:06.3]} 71. Ne7+ {[%clk 0:00:05.5]} 71... Kg7 {[%clk
0:00:06.9]} 72. Nf5+ {[%clk 0:00:05.4]} 72... Kh7 {[%clk 0:00:06.9]} 73. Ne7
{[%clk 0:00:05.4]} 73... Nf4 {[%clk 0:00:02.6]} 74. Kxg5 {[%clk 0:00:03.6]}
74... h3 {[%clk 0:00:02.9]} 75. Nf5 {[%clk 0:00:04.5]} 75... h2 {[%clk
0:00:02.3]} 76. Ng3 {[%clk 0:00:04.8]} 76... Nd3 {[%clk 0:00:02.5]} 77. Nh1
{[%clk 0:00:04.2]} 77... Nxe5 {[%clk 0:00:02.7]} 78. Kf4 {[%clk 0:00:04.9]}
78... f6 {[%clk 0:00:02.5]} 79. Kg3 {[%clk 0:00:05.6]} 79... Kg6 {[%clk
0:00:03.3]} 80. Kxh2 {[%clk 0:00:06.3]} 80... Kg5 {[%clk 0:00:04.2]} 81. Kg3
{[%clk 0:00:06.7]} 81... f5 {[%clk 0:00:04.4]} 82. Nf2 {[%clk 0:00:07.3]} 82...
f4+ {[%clk 0:00:05]} 83. Kg2 {[%clk 0:00:07.9]} 83... Kh4 {[%clk 0:00:05.2]} 84.
Ne4 {[%clk 0:00:07]} 84... Kg4 {[%clk 0:00:04.1]} 85. Nf2+ {[%clk 0:00:06.9]}
85... Kh4 {[%clk 0:00:04.1]} 86. Ne4 {[%clk 0:00:07]} 86... Kg4 {[%clk
0:00:04.5]} 87. Nf2+ {[%clk 0:00:07.3]} 87... Kf5 {[%clk 0:00:05.2]} 88. Nh3
{[%clk 0:00:07.5]} 88... f3+ {[%clk 0:00:05.8]} 89. Kg3 {[%clk 0:00:08.2]} 89...
Ke4 {[%clk 0:00:05]} 90. Ng5+ {[%clk 0:00:08.5]} 90... Ke3 {[%clk 0:00:05.7]}
91. Nxf3 {[%clk 0:00:09.4]} 1/2-1/2

[Event "Early-Titled-Tuesday-Blitz-May-07-2024"]
[Site "Chess.com"]
[Date "2024.05.07"]
[Round "8"]
[White "Juicy_Fork"]
[Black "wqws"]
[Result "1-0"]
[WhiteElo "2463"]
[BlackElo "2679"]
[TimeControl "180+1"]
[EndTime "9:36:33 PDT"]
[Termination "Juicy_Fork won by checkmate"]

1. e4 {[%clk 0:03:00.9]} 1... c5 {[%clk 0:02:59.6]} 2. Nf3 {[%clk 0:03:00.7]}
2... d6 {[%clk 0:02:59.6]} 3. d4 {[%clk 0:03:01.1]} 3... cxd4 {[%clk 0:03:00.5]}
4. Nxd4 {[%clk 0:03:02]} 4... Nf6 {[%clk 0:03:00.9]} 5. Nc3 {[%clk 0:03:02.6]}
5... a6 {[%clk 0:03:01.5]} 6. Bd3 {[%clk 0:02:57]} 6... g6 {[%clk 0:02:56.1]} 7.
f3 {[%clk 0:02:54.7]} 7... Bg7 {[%clk 0:02:56.3]} 8. Be3 {[%clk 0:02:55.1]} 8...
O-O {[%clk 0:02:53.2]} 9. Qd2 {[%clk 0:02:55.7]} 9... Nbd7 {[%clk 0:02:52.1]}
10. O-O-O {[%clk 0:02:54.6]} 10... Ne5 {[%clk 0:02:51.4]} 11. h4 {[%clk
0:02:53.3]} 11... Nxd3+ {[%clk 0:02:48.7]} 12. Qxd3 {[%clk 0:02:53.6]} 12... h5
{[%clk 0:02:43.5]} 13. Bg5 {[%clk 0:02:50.5]} 13... Bd7 {[%clk 0:02:37.5]} 14.
g4 {[%clk 0:02:41.8]} 14... hxg4 {[%clk 0:02:28.5]} 15. Bxf6 {[%clk 0:02:40.8]}
15... Bxf6 {[%clk 0:02:27.7]} 16. h5 {[%clk 0:02:41.4]} 16... Kg7 {[%clk
0:02:20.4]} 17. hxg6 {[%clk 0:02:37.2]} 17... fxg6 {[%clk 0:02:20.4]} 18. Qe3
{[%clk 0:02:31.8]} 18... Rh8 {[%clk 0:02:20]} 19. fxg4 {[%clk 0:02:27.5]} 19...
e5 {[%clk 0:02:14.1]} 20. Nf3 {[%clk 0:01:47]} 20... Bxg4 {[%clk 0:02:11.9]} 21.
Rhg1 {[%clk 0:01:46.3]} 21... Qd7 {[%clk 0:01:46.2]} 22. Nd5 {[%clk 0:01:40.3]}
22... Bxf3 {[%clk 0:01:26.9]} 23. Nxf6 {[%clk 0:01:30.5]} 23... Qe6 {[%clk
0:01:10.9]} 24. Qxf3 {[%clk 0:01:24]} 24... Qxf6 {[%clk 0:01:10.8]} 25. Qxf6+
{[%clk 0:01:24.2]} 25... Kxf6 {[%clk 0:01:11.7]} 26. Rxd6+ {[%clk 0:01:25]}
26... Kf7 {[%clk 0:00:58.9]} 27. Rdxg6 {[%clk 0:01:11.7]} 27... Rh7 {[%clk
0:00:44.5]} 28. R6g5 {[%clk 0:01:08.5]} 28... Re8 {[%clk 0:00:43]} 29. Rf1+
{[%clk 0:00:57.8]} 29... Ke6 {[%clk 0:00:39.9]} 30. Rd1 {[%clk 0:00:50.6]} 30...
Rh2 {[%clk 0:00:33.8]} 31. Rg6+ {[%clk 0:00:47.2]} 31... Kf7 {[%clk 0:00:31.7]}
32. Rg3 {[%clk 0:00:30.1]} 32... Rc8 {[%clk 0:00:26.2]} 33. c3 {[%clk
0:00:23.9]} 33... Re2 {[%clk 0:00:19.8]} 34. Rd7+ {[%clk 0:00:20]} 34... Ke6
{[%clk 0:00:17.1]} 35. Rxb7 {[%clk 0:00:20]} 35... Kf6 {[%clk 0:00:16.2]} 36.
Rb6+ {[%clk 0:00:19.6]} 36... Kf7 {[%clk 0:00:16.1]} 37. Rxa6 {[%clk 0:00:18.6]}
37... Rh8 {[%clk 0:00:15.8]} 38. Rf3+ {[%clk 0:00:17]} 38... Ke7 {[%clk
0:00:15.7]} 39. Rf1 {[%clk 0:00:09.3]} 39... Rhh2 {[%clk 0:00:14.2]} 40. Rb6
{[%clk 0:00:09.7]} 40... Rxe4 {[%clk 0:00:13.1]} 41. Rg1 {[%clk 0:00:08.1]}
41... Ree2 {[%clk 0:00:11.7]} 42. Rg7+ {[%clk 0:00:06]} 42... Kf8 {[%clk
0:00:11.9]} 43. Rd7 {[%clk 0:00:04.7]} 43... Ke8 {[%clk 0:00:09.2]} 44. Rd1
{[%clk 0:00:03.3]} 44... e4 {[%clk 0:00:08.7]} 45. a4 {[%clk 0:00:03.8]} 45...
e3 {[%clk 0:00:07.8]} 46. a5 {[%clk 0:00:03.9]} 46... Rc2+ {[%clk 0:00:03.9]}
47. Kb1 {[%clk 0:00:04.1]} 47... Rcf2 {[%clk 0:00:04]} 48. Re1 {[%clk
0:00:02.7]} 48... e2 {[%clk 0:00:03.5]} 49. Kc2 {[%clk 0:00:03]} 49... Rh5
{[%clk 0:00:02.7]} 50. a6 {[%clk 0:00:02.8]} 50... Ra5 {[%clk 0:00:03]} 51. Re6+
{[%clk 0:00:02.5]} 51... Kd7 {[%clk 0:00:03.2]} 52. R1xe2 {[%clk 0:00:03.3]}
52... Rxe2+ {[%clk 0:00:03.8]} 53. Rxe2 {[%clk 0:00:03.4]} 53... Rxa6 {[%clk
0:00:04.7]} 54. Rd2+ {[%clk 0:00:03.1]} 54... Kc6 {[%clk 0:00:04.9]} 55. Rf2
{[%clk 0:00:03.2]} 55... Kd5 {[%clk 0:00:05]} 56. Rf5+ {[%clk 0:00:03.2]} 56...
Ke4 {[%clk 0:00:04.3]} 57. Rh5 {[%clk 0:00:03.5]} 57... Rg6 {[%clk 0:00:04.4]}
58. Rh4+ {[%clk 0:00:03.9]} 58... Kd5 {[%clk 0:00:04.1]} 59. Rd4+ {[%clk
0:00:04.2]} 59... Kc5 {[%clk 0:00:04.5]} 60. b4+ {[%clk 0:00:05]} 60... Kb5
{[%clk 0:00:04.9]} 61. Kb3 {[%clk 0:00:05.7]} 61... Rg1 {[%clk 0:00:04.8]} 62.
Rd5+ {[%clk 0:00:06]} 62... Kc6 {[%clk 0:00:04.9]} 63. Rc5+ {[%clk 0:00:06.4]}
63... Kb6 {[%clk 0:00:05.6]} 64. Rh5 {[%clk 0:00:04.9]} 64... Rg8 {[%clk
0:00:03.3]} 65. c4 {[%clk 0:00:05.2]} 65... Rg1 {[%clk 0:00:03.2]} 66. Rh6+
{[%clk 0:00:04.9]} 66... Kc7 {[%clk 0:00:03.5]} 67. b5 {[%clk 0:00:05]} 67...
Rc1 {[%clk 0:00:01.9]} 68. Kb4 {[%clk 0:00:05.1]} 68... Rg1 {[%clk 0:00:01.3]}
69. Rh7+ {[%clk 0:00:04.2]} 69... Kb8 {[%clk 0:00:00.4]} 70. Ka5 {[%clk
0:00:04.1]} 70... Ka8 {[%clk 0:00:00.6]} 71. Ka6 {[%clk 0:00:03]} 71... Rg8
{[%clk 0:00:01.5]} 72. b6 {[%clk 0:00:02.5]} 72... Kb8 {[%clk 0:00:02.4]} 73.
Rb7+ {[%clk 0:00:01.9]} 73... Ka8 {[%clk 0:00:02.6]} 74. Rf7 {[%clk 0:00:01.4]}
74... Re8 {[%clk 0:00:02.3]} 75. c5 {[%clk 0:00:01.7]} 75... Rb8 {[%clk
0:00:02.5]} 76. c6 {[%clk 0:00:02]} 76... Rxb6+ {[%clk 0:00:02.5]} 77. Kxb6
{[%clk 0:00:01.5]} 77... Kb8 {[%clk 0:00:03.4]} 78. Rf8# {[%clk 0:00:02.4]} 1-0